bitfinex-derivatives/quotes_ETHF0:USTF0_20240915
["timestamp","ask_amount","ask_price","bid_price","bid_amount"]
[1726360669737,4.0081,2422.6,2422.4,0.33012]
[1726360674351,0.8003,2422.6,2422.4,0.33012]
[1726360674552,4.0081,2422.6,2422.4,0.33012]
[1726360677555,4.0081,2422.6,2422.3,0.3777]
[1726360677556,3.2078,2422.6,2422.5,0.33012]
[1726360677858,3.61746227,2422.7,2422.5,0.33012]
[1726360677859,0.3734,2422.7,2422.5,0.33012]
[1726360678360,0.3734,2422.7,2422.6,0.4083]
[1726360681565,0.3734,2422.7,2422.6,0.7384]
[1726360683364,0.3734,2422.7,2422.6,0.4083]
[1726360684462,0.3734,2422.7,2422.6,0.7384]
[1726360686768,0.3734,2422.7,2422.6,2.2284]
[1726360686964,3.0803096,2422.7,2422.6,2.2284]
[1726360689572,2.7069096,2422.7,2422.6,6.3564]
[1726360692272,5.9147096,2422.8,2422.7,0.33009]
[1726360709281,5.9147096,2422.8,2422.6,0.7384]
[1726360709589,2.7069096,2422.7,2422.5,0.33011]
[1726360709892,0.7761,2422.6,2422.5,0.33011]
[1726360710184,1.1575,2422.6,2422.5,0.33011]
[1726360712286,3.8644096,2422.6,2422.5,0.33011]
[1726360721393,3.8644096,2422.6,2422.5,1.82011]
[1726360722189,2.7069096,2422.6,2422.5,1.82011]
[1726360722496,2.7069096,2422.6,2422.5,2.19471]
[1726360727000,2.7069096,2422.6,2422.5,0.70471]
[1726360727198,2.7069096,2422.6,2422.5,1.82011]
[1726360734202,2.7069096,2422.6,2422.5,2.33638509]
[1726360734905,2.7069096,2422.6,2422.5,1.82011]
[1726360735308,2.7069096,2422.6,2422.5,2.33637675]
[1726360735512,2.7069096,2422.6,2422.5,2.33637676]
[1726360735801,2.7069096,2422.6,2422.5,2.3363722]
[1726360738504,2.7069096,2422.6,2422.5,2.79586389]
[1726360739009,2.7069096,2422.6,2422.5,2.33635792]
[1726360739200,2.7069096,2422.6,2422.5,2.79584334]
[1726360739603,2.7069096,2422.6,2422.5,1.82011]
[1726360739802,2.7069096,2422.6,2422.5,2.33637145]
[1726360740501,2.7069096,2422.6,2422.5,2.79586442]
[1726360741504,2.7069096,2422.6,2422.5,2.33637145]
[1726360744206,2.7069096,2422.6,2422.5,2.79587345]
[1726360745505,2.7069096,2422.6,2422.5,2.33636658]
[1726360746009,2.7069096,2422.6,2422.5,2.79585958]
[1726360749110,2.7069096,2422.6,2422.5,2.33636658]
[1726360749308,2.7069096,2422.6,2422.5,2.79586976]
[1726360750805,2.7069096,2422.6,2422.5,2.79586715]
[1726360751614,7.62996227,2422.9,2422.6,0.3301]
[1726360751615,2.7069096,2422.7,2422.6,0.3301]
[1726360751810,2.70798794,2422.7,2422.6,0.84636195]
[1726360752007,2.70798794,2422.7,2422.6,1.30582331]
[1726360752808,2.70798794,2422.7,2422.6,1.3057768]
[1726360753009,2.70798794,2422.7,2422.6,0.84631544]
[1726360753314,2.70798794,2422.7,2422.6,1.3057731]
[1726360753511,7.62996227,2422.9,2422.6,1.3057731]
[1726360753714,7.62996227,2422.9,2422.6,0.3301]
[1726360753911,7.62996227,2422.9,2422.7,0.3734]
[1726360757313,7.62996227,2422.9,2422.7,0.70349]
[1726360766126,7.62996227,2422.9,2422.8,0.33008]
[1726360766321,7.62996227,2422.9,2422.7,0.70348]
[1726360770431,7.62996227,2422.9,2422.7,0.33008]
[1726360773230,4.3859,2422.9,2422.8,0.33008]
[1726360773429,7.62996227,2422.9,2422.8,0.33008]
[1726360773629,4.3859,2422.9,2422.8,0.33008]
[1726360774226,1.1781,2422.9,2422.8,0.33008]
[1726360775234,4.42216227,2422.9,2422.8,0.33008]
[1726360786936,4.42216227,2422.9,2422.7,0.33008]
[1726360789940,4.42216227,2422.9,2422.8,0.33008]
[1726360790739,4.42216227,2422.9,2422.7,0.33008]
[1726360793635,7.62996227,2422.9,2422.5,0.4965]
[1726360793836,2.70845365,2422.6,2422.5,0.42611]
[1726360794036,2.70845365,2422.6,2422.5,0.84644805]
[1726360794339,2.70845365,2422.6,2422.5,1.30601826]
[1726360794537,0.4067,2422.7,2422.5,1.68681826]
[1726360794738,0.7754,2422.6,2422.5,0.71091]
[1726360794939,0.7754,2422.6,2422.5,1.68686677]
[1726360795139,0.7754,2422.6,2422.5,1.22727467]
[1726360796635,0.7754,2422.6,2422.5,0.71091]
[1726360796831,0.7754,2422.6,2422.5,1.22727751]
[1726360800344,0.7754,2422.6,2422.5,1.22726857]
[1726360800832,0.7754,2422.6,2422.5,1.22726148]
[1726360801036,0.7754,2422.6,2422.5,0.71091]
[1726360801233,0.7754,2422.6,2422.5,1.22726213]
[1726360801835,0.7754,2422.6,2422.5,0.71091]
[1726360805749,0.3999,2422.6,2422.5,1.58035835]
[1726360806048,0.3999,2422.6,2422.5,2.09689852]
[1726360806049,3.10776206,2422.6,2422.5,2.09689852]
[1726360806344,3.10776206,2422.6,2422.5,1.58035835]
[1726360806651,3.10776206,2422.6,2422.5,1.63714585]
[1726360806946,3.10776206,2422.6,2422.5,1.68719066]
[1726360807146,3.10776206,2422.6,2422.5,1.22744585]
[1726360808340,3.10776206,2422.6,2422.5,1.2274526]
[1726360809356,3.10776206,2422.6,2422.5,0.71091]
[1726360809547,3.10776206,2422.6,2422.5,1.22745202]
[1726360810348,3.10776206,2422.6,2422.5,1.22745191]
[1726360810550,3.10776206,2422.6,2422.5,0.71091]
[1726360810758,3.10776206,2422.6,2422.5,1.22745191]
[1726360817656,3.10776206,2422.6,2422.5,0.71091]
[1726360817855,3.10776206,2422.6,2422.5,1.22744865]
[1726360818060,2.70786206,2422.7,2422.6,0.3301]
[1726360818359,2.70786206,2422.7,2422.6,2.33663865]
[1726360818552,2.70786206,2422.7,2422.6,1.8201]
[1726360818746,2.70786206,2422.7,2422.6,2.79621312]
[1726360819554,2.70786206,2422.7,2422.6,1.8201]
[1726360819765,2.70786206,2422.7,2422.6,2.79621507]
[1726360820555,2.70786206,2422.7,2422.6,2.33654499]
[1726360821855,2.70786206,2422.7,2422.6,2.33656438]
[1726360822256,2.70786206,2422.7,2422.6,2.33656436]
[1726360822455,2.70786206,2422.7,2422.6,2.79623638]
[1726360823758,2.70786206,2422.7,2422.6,6.0040282]
[1726360824456,2.70786206,2422.7,2422.6,5.0279]
[1726360824965,2.16585872,2422.7,2422.6,17.24477688]
[1726360825253,0.096,2423.0,2422.9,0.33006]
[1726360825457,0.3896,2423.1,2423.0,0.33005]
[1726360825852,0.3896,2423.1,2423.0,0.70185]
[1726360839963,0.3896,2423.1,2423.0,0.33005]
[1726360842660,0.3896,2423.1,2423.0,0.70585]
[1726360857079,0.3896,2423.1,2423.0,4.83305]
[1726360857295,2.25635328,2423.5,2423.0,16.36436957]
[1726360857479,0.096,2423.5,2423.4,5.02779]
[1726360857789,2.94565328,2423.6,2423.4,5.02779]
[1726360857790,1.163,2423.6,2423.5,0.32998]
[1726360858580,1.163,2423.6,2423.5,0.72608]
[1726360862392,1.163,2423.6,2423.5,3.93388]
[1726360866286,3.32335328,2423.6,2423.5,3.93388]
[1726360867784,1.163,2423.6,2423.5,3.93388]
[1726360867976,3.32335328,2423.6,2423.5,3.93388]
[1726360869592,1.163,2423.6,2423.5,3.93388]
[1726360878892,0.7682,2423.6,2423.5,3.93388]
[1726360880092,0.3963,2423.8,2423.7,0.32995]
[1726360880401,0.3963,2423.8,2423.7,1.81995]
[1726360881502,3.34045328,2423.8,2423.7,1.81995]
[1726360887002,3.34045328,2423.8,2423.7,1.49]
[1726360887203,1.1801,2423.8,2423.6,0.32996]
[1726360887501,1.1801,2423.8,2423.7,0.32995]
[1726360888399,3.34048692,2423.8,2423.7,0.32995]
[1726360891102,3.34048692,2423.8,2423.5,3.2078]
[1726360891103,8.00600711,2423.8,2423.5,3.2078]
[1726360891404,2.1608296,2423.6,2423.5,3.53778]
[1726360891699,2.1608296,2423.6,2423.3,1.586]
[1726360891903,2.1608296,2423.6,2423.3,1.82]
[1726360891904,1.6208248,2423.4,2423.3,1.82]
[1726360892203,2.5592296,2423.5,2423.3,1.82]
[1726360892404,0.7741,2423.4,2423.3,1.82]
[1726360892603,0.7741,2423.4,2423.2,5.41512]
[1726360892803,2.9349296,2423.4,2423.2,5.02782]
[1726360893005,2.9349296,2423.4,2423.2,3.2078]
[1726360893192,2.1608296,2423.3,2423.2,3.2078]
[1726360893605,2.16162434,2423.3,2423.2,3.2078]
[1726360894895,2.16162434,2423.3,2423.2,4.6978]
[1726360899906,2.16162434,2423.3,2423.2,5.02782]
[1726360900099,2.93572434,2423.4,2423.2,5.02782]
[1726360900305,2.93572434,2423.4,2423.2,4.6978]
[1726360900503,2.93572434,2423.4,2423.3,0.33001]
[1726360901005,7.06212434,2423.4,2423.3,0.33001]
[1726360901801,2.93572434,2423.4,2423.3,0.33001]
[1726360902006,7.06212434,2423.4,2423.3,0.33001]
[1726360902209,7.06162177,2423.4,2423.3,0.33001]
[1726360902509,7.06161035,2423.4,2423.3,0.33001]
[1726360902704,4.9005,2423.4,2423.3,0.33001]
[1726360903109,2.93521403,2423.4,2423.3,0.33001]
[1726360905709,2.93521403,2423.4,2423.3,0.72941]
[1726360906114,2.93521403,2423.4,2423.3,0.33001]
[1726360907910,2.93521403,2423.4,2423.3,0.71931]
[1726360910911,2.93521403,2423.4,2423.3,2.20931]
[1726360911607,0.7741,2423.4,2423.3,2.20931]
[1726360912123,2.93521403,2423.4,2423.3,2.20931]
[1726360912623,0.7741,2423.4,2423.3,2.20931]
[1726360915909,2.93521403,2423.4,2423.3,2.20931]
[1726360917020,0.7741,2423.4,2423.3,2.20931]
[1726360917213,2.93521403,2423.4,2423.3,2.20931]
[1726360917923,0.7741,2423.4,2423.3,2.20931]
[1726360918319,2.93521403,2423.4,2423.3,2.20931]
[1726360918525,0.7741,2423.4,2423.3,2.20931]
[1726360919430,2.93521403,2423.4,2423.3,2.20931]
[1726360920625,2.93521403,2423.4,2423.3,0.3893]
[1726360920925,2.93521403,2423.4,2423.3,0.71931]
[1726360922129,0.7741,2423.4,2423.3,0.71931]
[1726360922828,2.93521403,2423.4,2423.3,0.71931]
[1726360923527,3.26520403,2423.4,2423.2,4.6978]
[1726360923727,2.16111403,2423.3,2423.2,4.6978]
[1726360923922,2.16111403,2423.3,2423.2,3.2078]
[1726360924818,2.16111403,2423.3,2423.2,3.53782]
[1726360925220,0.7741,2423.4,2423.2,3.53782]
[1726360925428,2.16136406,2423.3,2423.2,3.2078]
[1726360927321,1.10409,2423.4,2423.2,3.2078]
[1726360929626,0.7741,2423.4,2423.2,3.53782]
[1726360930025,2.16182719,2423.3,2423.2,4.6978]
[1726360930231,2.16182719,2423.3,2423.2,5.02781]
[1726360932531,2.16275226,2423.3,2423.2,5.02781]
[1726360932734,2.16275677,2423.3,2423.2,5.02781]
[1726360933034,2.16275616,2423.3,2423.2,5.02781]
[1726360933231,3.47440711,2423.4,2423.2,5.02781]
[1726360934332,2.70030711,2423.3,2423.2,5.02781]
[1726360934836,3.47440711,2423.4,2423.2,5.02781]
[1726360935432,2.70030711,2423.3,2423.2,5.02781]
[1726360938137,2.70030711,2423.3,2423.2,1.82001]
[1726360940241,2.70030711,2423.3,2423.2,2.36214079]
[1726360942840,2.70030711,2423.3,2423.2,2.36213752]
[1726360946334,2.70030711,2423.3,2423.2,2.75063752]
[1726360946529,2.70030711,2423.3,2423.2,2.20851]
[1726360946733,2.70030711,2423.3,2423.2,2.75061774]
[1726360947638,2.70030711,2423.3,2423.2,3.14901774]
[1726360954345,2.70030711,2423.3,2423.2,2.76051774]
[1726360956240,2.70030711,2423.3,2423.2,2.21841]
[1726360956440,2.70030711,2423.3,2423.2,2.76044725]
[1726360956856,2.70030711,2423.3,2423.2,2.76045468]
[1726360959654,2.70030711,2423.3,2423.2,2.21841]
[1726360959849,2.70030711,2423.3,2423.2,2.76044449]
[1726360963355,0.7741,2423.4,2423.2,2.76044449]
[1726360963551,2.70713705,2423.3,2423.2,2.21841]
[1726360963757,2.70713705,2423.3,2423.2,2.76046609]
[1726360966647,2.70713705,2423.3,2423.2,2.76045733]
[1726360967045,2.70713705,2423.3,2423.2,1.27045733]
[1726360967852,2.70713705,2423.3,2423.2,1.27045761]
[1726360970357,0.7741,2423.4,2423.3,0.33001]
[1726360975864,0.7741,2423.4,2423.3,0.8720741]
[1726360976059,0.7741,2423.4,2423.3,0.87207373]
[1726360976261,0.7741,2423.4,2423.3,0.33001]
[1726360978176,0.7741,2423.4,2423.3,0.8720689]
[1726360980077,0.7741,2423.4,2423.3,0.33001]
[1726360980275,0.7741,2423.4,2423.3,0.87207032]
[1726360983781,0.7741,2423.4,2423.3,0.33001]
[1726360984177,0.7741,2423.4,2423.3,0.87205701]
[1726360985582,0.7741,2423.4,2423.3,2.82150808]
[1726360986176,0.7741,2423.4,2423.3,2.82143572]
[1726360986374,3.4819768,2423.4,2423.3,2.82143572]
[1726360986581,3.48192286,2423.4,2423.3,2.82143572]
[1726360986878,3.09110861,2423.4,2423.3,1.82001]
[1726360987082,3.09110861,2423.4,2423.3,5.97949073]
[1726360987381,3.09110861,2423.4,2423.3,2.77169073]
[1726360987582,3.09110861,2423.4,2423.3,6.43891853]
[1726360987791,3.09110861,2423.4,2423.3,8.38439261]
[1726360988081,0.3833,2423.4,2423.3,7.92496481]
[1726360988289,0.3833,2423.4,2423.3,8.8436621]
[1726360988478,0.3833,2423.4,2423.3,8.38427292]
[1726360988683,0.3833,2423.4,2423.3,7.97659548]
[1726360989085,2.70780861,2423.5,2423.4,0.32999]
[1726360989394,2.70780861,2423.5,2423.4,0.87189783]
[1726360989695,2.70780861,2423.5,2423.4,4.99829783]
[1726360989892,2.70780861,2423.5,2423.4,4.99829244]
[1726360990592,2.70780861,2423.5,2423.4,4.45639]
[1726360990892,2.70780861,2423.5,2423.4,4.99829111]
[1726360993788,3.08730861,2423.6,2423.5,0.32998]
[1726360994094,3.08730861,2423.6,2423.5,1.81998]
[1726361000500,0.3795,2423.6,2423.5,1.81998]
[1726361000799,3.08730861,2423.6,2423.5,1.81998]
[1726361000993,0.3795,2423.6,2423.5,1.81998]
[1726361001195,3.08730861,2423.6,2423.5,1.81998]
[1726361003094,0.3795,2423.6,2423.5,1.81998]
[1726361008200,3.08730861,2423.6,2423.5,1.81998]
[1726361010498,3.08730861,2423.6,2423.5,0.32998]
[1726361010805,3.08730861,2423.6,2423.5,1.81998]
[1726361016299,0.3795,2423.6,2423.5,1.81998]
[1726361017493,3.08730861,2423.6,2423.5,1.81998]
[1726361017905,0.3795,2423.6,2423.5,1.81998]
[1726361018106,3.08730861,2423.6,2423.5,1.81998]
[1726361020406,0.3795,2423.6,2423.5,1.81998]
[1726361020612,3.08730861,2423.6,2423.5,1.81998]
[1726361023606,3.08730861,2423.6,2423.5,0.32998]
[1726361024005,3.08730861,2423.6,2423.4,3.6018]
[1726361024307,0.3843,2423.5,2423.4,3.93179]
[1726361024501,0.3843,2423.5,2423.4,4.47371585]
[1726361024709,2.54857482,2423.5,2423.4,4.47371585]
[1726361024909,2.54859037,2423.5,2423.4,4.47371585]
[1726361025117,0.3843,2423.5,2423.4,3.74972585]
[1726361025415,3.09210861,2423.5,2423.4,3.74972585]
[1726361025605,3.09210861,2423.5,2423.4,3.2078]
[1726361025808,0.3843,2423.5,2423.4,4.20922513]
[1726361026306,0.3843,2423.5,2423.4,3.66724222]
[1726361026501,0.3843,2423.5,2423.4,3.74979209]
[1726361026708,0.3843,2423.5,2423.4,4.20924186]
[1726361028518,0.3843,2423.5,2423.4,0.54199209]
[1726361028711,3.09210861,2423.5,2423.4,0.54199209]
[1726361029810,3.09210861,2423.5,2423.3,1.82]
[1726361030013,0.3834,2423.4,2423.3,1.82]
[1726361030214,0.3834,2423.4,2423.3,2.36206233]
[1726361030514,0.3834,2423.4,2423.3,2.82156349]
[1726361031217,0.3834,2423.4,2423.3,3.89994221]
[1726361031415,0.3834,2423.4,2423.3,2.40994221]
[1726361031616,0.3834,2423.4,2423.3,2.82156349]
[1726361031918,0.3834,2423.4,2423.3,3.89994221]
[1726361033312,0.3834,2423.4,2423.3,3.35787988]
[1726361033522,0.3834,2423.4,2423.3,3.44041821]
[1726361033909,0.3834,2423.4,2423.3,3.89990113]
[1726361035114,0.3834,2423.4,2423.3,3.89983869]
[1726361035819,0.3834,2423.4,2423.3,2.82145997]
[1726361036218,0.3834,2423.4,2423.3,3.21305997]
[1726361037109,0.3834,2423.4,2423.3,2.75363949]
[1726361037313,0.3834,2423.4,2423.3,3.21295806]
[1726361038722,2.70780861,2423.5,2423.4,0.32999]
[1726361038920,2.70780861,2423.5,2423.4,1.81999]
[1726361039124,2.70780861,2423.5,2423.4,2.36183355]
[1726361040314,3.10680861,2423.5,2423.4,2.36183355]
[1726361040921,3.10680861,2423.5,2423.4,1.81999]
[1726361042023,3.10680861,2423.5,2423.4,2.36182943]
[1726361042324,3.10680861,2423.5,2423.4,2.36182728]
[1726361042526,3.10680861,2423.5,2423.4,2.36182485]
[1726361042922,3.10680861,2423.5,2423.4,1.81999]
[1726361043918,3.10680861,2423.5,2423.4,2.36182527]
[1726361046824,3.10680861,2423.5,2423.4,2.36180585]
[1726361047427,3.10680861,2423.5,2423.4,0.54181585]
[1726361047628,0.399,2423.5,2423.2,3.2078]
[1726361047934,0.4024,2423.4,2423.3,0.33]
[1726361048126,3.10860535,2423.4,2423.3,0.33]
[1726361048331,0.4024,2423.4,2423.3,0.33]
[1726361048630,3.10860039,2423.4,2423.3,0.33]
[1726361049034,3.10858125,2423.4,2423.3,1.82]
[1726361049341,0.4024,2423.4,2423.2,3.53782]
[1726361049633,0.4024,2423.4,2423.3,1.49]
[1726361050335,0.4024,2423.4,2423.3,1.82001]
[1726361058537,3.10730733,2423.4,2423.3,1.82001]
[1726361062443,3.50140733,2423.4,2423.3,1.82001]
[1726361067049,0.7965,2423.4,2423.3,1.82001]
[1726361069048,3.50168529,2423.4,2423.3,1.82001]
[1726361069347,0.3941,2423.4,2423.3,1.82001]
[1726361069540,0.3941,2423.4,2423.3,2.361883]
[1726361070545,2.55822232,2423.4,2423.3,2.82118321]
[1726361071747,2.16412232,2423.4,2423.3,2.82118321]
[1726361072149,2.16412232,2423.4,2423.3,1.82001]
[1726361072350,2.16412232,2423.4,2423.3,2.36184696]
[1726361072555,2.16412232,2423.4,2423.3,2.82115309]
[1726361075452,2.16412232,2423.4,2423.3,2.82113771]
[1726361078156,2.16412232,2423.5,2423.4,0.32999]
[1726361078362,2.16412232,2423.5,2423.4,5.56962123]
[1726361082255,2.16412232,2423.5,2423.4,5.02779]
[1726361082563,2.16412232,2423.5,2423.4,5.56965361]
[1726361082753,2.16412232,2423.5,2423.4,5.56965403]
[1726361084352,2.16412232,2423.5,2423.4,5.02779]
[1726361084552,2.16412232,2423.5,2423.4,5.56964951]
[1726361085463,2.94372232,2423.6,2423.5,0.32998]
[1726361085655,2.94289624,2423.6,2423.5,0.32998]
[1726361086454,2.94289624,2423.6,2423.5,0.87176987]
[1726361087259,0.7796,2423.6,2423.5,0.87176987]
[1726361089269,0.7796,2423.6,2423.5,0.32998]
[1726361089569,0.7796,2423.6,2423.5,0.871748]
[1726361090472,0.7796,2423.6,2423.5,0.32998]
[1726361101684,0.7796,2423.6,2423.4,3.2078]
[1726361101884,2.55879624,2423.5,2423.2,0.33002]
[1726361102188,3.10068529,2423.5,2423.4,1.49]
[1726361103590,3.43066529,2423.5,2423.2,1.49]
[1726361103789,2.16251055,2423.3,2423.2,1.82002]
[1726361103987,2.16251055,2423.3,2423.2,1.49]
[1726361104283,3.10068529,2423.5,2423.2,2.36206648]
[1726361104284,2.16251055,2423.4,2423.2,2.36206648]
[1726361104485,0.8222,2423.3,2423.2,1.82002]
[1726361104787,0.8222,2423.3,2423.2,2.36205917]
[1726361104983,2.98471055,2423.3,2423.2,2.36205917]
[1726361105486,2.98471055,2423.3,2423.2,2.75965917]
[1726361106085,2.98471055,2423.3,2423.2,2.21762]
[1726361106281,2.98471055,2423.3,2423.2,2.75965785]
[1726361106485,0.8222,2423.3,2423.2,2.75965785]
[1726361106687,0.8222,2423.3,2423.2,3.21911871]
[1726361107500,2.98471055,2423.3,2423.2,2.75965785]
[1726361108482,2.98471055,2423.3,2423.2,3.21913044]
[1726361109185,0.8222,2423.3,2423.2,3.21913044]
[1726361109594,0.8222,2423.3,2423.2,3.75547131]
[1726361109784,0.8222,2423.3,2423.2,3.83794201]
[1726361109985,0.8222,2423.3,2423.2,4.29734375]
[1726361111491,0.8222,2423.3,2423.2,8.42374375]
[1726361111685,2.55801055,2423.5,2423.4,0.32999]
[1726361111983,2.55801055,2423.5,2423.4,5.56973329]
[1726361113287,2.55801055,2423.5,2423.4,5.56976656]
[1726361113688,0.7852,2423.6,2423.5,0.32998]
[1726361113689,2.94771055,2423.6,2423.5,0.32998]
[1726361113887,2.94771055,2423.6,2423.5,0.87189928]
[1726361114089,2.94771055,2423.6,2423.5,0.70618]
[1726361115799,2.94771055,2423.6,2423.5,1.24816277]
[1726361116087,2.94771055,2423.6,2423.5,0.70618]
[1726361116287,2.94771055,2423.6,2423.5,1.24815601]
[1726361116795,2.94771055,2423.6,2423.5,1.2481622]
[1726361118595,2.94771055,2423.6,2423.5,0.70618]
[1726361119194,2.94771055,2423.6,2423.5,1.24818354]
[1726361119694,2.94771055,2423.6,2423.5,0.70618]
[1726361121998,2.94771055,2423.6,2423.5,1.24814541]
[1726361122397,2.94771055,2423.6,2423.5,0.70618]
[1726361126996,0.7852,2423.6,2423.5,0.70618]
[1726361129411,2.94854536,2423.6,2423.5,0.70618]
[1726361129804,0.7852,2423.6,2423.5,0.70618]
[1726361130100,2.94856587,2423.6,2423.5,0.70618]
[1726361131011,0.7852,2423.6,2423.5,0.70618]
[1726361136720,0.7852,2423.6,2423.5,0.32998]
[1726361138306,3.49038529,2423.6,2423.5,0.32998]
[1726361155237,3.49038529,2423.6,2423.5,0.87191876]
[1726361155440,0.7852,2423.6,2423.5,0.32998]
[1726361155629,0.7852,2423.6,2423.5,0.87191973]
[1726361155630,3.49168278,2423.6,2423.5,0.87191973]
[1726361156133,0.7852,2423.6,2423.5,0.32998]
[1726361156636,0.7852,2423.6,2423.4,1.81999]
[1726361156841,3.11825216,2423.5,2423.4,1.81999]
[1726361157139,3.11825216,2423.5,2423.4,2.36197293]
[1726361161446,3.11825216,2423.5,2423.4,1.81999]
[1726361161642,3.11825216,2423.5,2423.4,2.3619502]
[1726361162050,3.11825216,2423.5,2423.4,2.82136522]
[1726361162252,3.11825216,2423.5,2423.4,2.3619502]
[1726361165346,3.11825216,2423.5,2423.4,2.82134376]
[1726361165751,3.11825216,2423.5,2423.4,2.82138051]
[1726361166146,3.11825216,2423.5,2423.4,2.3619502]
[1726361167351,3.11825216,2423.5,2423.4,1.81999]
[1726361167558,3.11825216,2423.5,2423.4,2.36196299]
[1726361167753,3.11825216,2423.5,2423.4,2.82139182]
[1726361168055,3.11825216,2423.5,2423.4,2.36196299]
[1726361169156,4.5381,2423.5,2423.3,0.33001]
[1726361169347,2.70680295,2423.4,2423.3,0.33001]
[1726361169552,2.70680295,2423.4,2423.3,0.87207369]
[1726361171053,2.70680295,2423.4,2423.3,0.33001]
[1726361171254,2.70680295,2423.4,2423.3,0.87207727]
[1726361171960,2.70680295,2423.4,2423.3,0.87206459]
[1726361174147,2.70680295,2423.4,2423.3,0.33001]
[1726361174550,2.70680295,2423.4,2423.3,0.87202355]
[1726361178660,3.11850295,2423.5,2423.4,0.32999]
[1726361178865,3.11850295,2423.5,2423.4,2.36200355]
[1726361181466,3.11850295,2423.5,2423.4,1.81999]
[1726361181670,3.11850295,2423.5,2423.4,2.36190412]
[1726361181871,3.11850295,2423.5,2423.4,2.36190178]
[1726361182368,2.70680295,2423.5,2423.4,2.36190178]
[1726361184964,2.70680295,2423.5,2423.4,2.36190424]
[1726361185266,3.49200295,2423.6,2423.5,0.32998]
[1726361185468,3.49200295,2423.6,2423.5,2.36189448]
[1726361185770,3.49200295,2423.6,2423.5,3.20166188]
[1726361185771,0.7852,2423.6,2423.5,3.20166188]
[1726361188076,2.70680295,2423.7,2423.6,0.32997]
[1726361188369,2.80280295,2423.9,2423.8,0.32994]
[1726361188564,2.70680295,2423.9,2423.8,1.81994]
[1726361189364,3.88700295,2424.0,2423.8,1.81994]
[1726361190770,2.70680295,2423.9,2423.8,1.81994]
[1726361195384,3.88700295,2424.0,2423.8,1.81994]
[1726361195673,3.88700295,2424.0,2423.9,0.32993]
[1726361196679,1.1802,2424.0,2423.9,0.32993]
[1726361197580,3.88268919,2424.0,2423.9,0.32993]
[1726361199175,1.1802,2424.0,2423.9,0.32993]
[1726361199371,3.8824811,2424.0,2423.9,0.32993]
[1726361203773,1.1802,2424.0,2423.9,0.32993]
[1726361203978,1.1802,2424.0,2423.8,1.49]
[1726361204175,2.70194309,2423.9,2423.8,1.81994]
[1726361205191,2.70186067,2423.9,2423.8,1.81994]
[1726361207287,0.7953,2424.0,2423.9,0.32993]
[1726361207483,3.49699059,2424.0,2423.9,0.32993]
[1726361208883,3.10589059,2424.0,2423.9,0.32993]
[1726361209496,0.4042,2424.0,2423.9,0.32993]
[1726361210799,2.56490352,2424.0,2423.9,0.32993]
[1726361214895,2.56490352,2424.0,2423.6,3.2078]
[1726361215092,2.56490352,2424.0,2423.9,1.81993]
[1726361220496,0.4042,2424.0,2423.9,1.81993]
[1726361223491,3.10589059,2424.0,2423.9,1.81993]
[1726361225602,2.70169059,2424.0,2423.9,1.81993]
[1726361225799,3.08109059,2424.1,2424.0,0.32991]
[1726361226002,3.08109059,2424.1,2424.0,1.81991]
[1726361227894,3.46039059,2424.1,2424.0,1.81991]
[1726361228405,0.7587,2424.1,2424.0,1.81991]
[1726361232306,0.7587,2424.1,2424.0,1.49]
[1726361232810,0.7587,2424.1,2424.0,1.81991]
[1726361245314,0.7587,2424.1,2424.0,0.32991]
[1726361253923,0.7587,2424.1,2424.0,1.81991]
[1726361254823,0.3794,2424.1,2424.0,1.81991]
[1726361256733,0.7785,2424.1,2424.0,1.81991]
[1726361258027,0.3794,2424.1,2424.0,1.81991]
[1726361270940,0.7541,2424.1,2424.0,1.81991]
[1726361271335,0.7541,2424.1,2423.8,1.47687872]
[1726361271548,0.7541,2424.1,2423.9,0.32992]
[1726361271734,3.99816227,2424.1,2423.9,0.45881424]
[1726361272038,3.99816227,2424.1,2423.8,2.21843]
[1726361272840,3.99816227,2424.1,2423.9,0.32993]
[1726361274640,3.99816227,2424.1,2423.8,0.72843]
[1726361274838,3.99816227,2424.1,2423.9,1.49]
[1726361276745,3.24406227,2424.0,2423.9,1.49]
[1726361277032,0.7541,2424.1,2423.9,1.49]
[1726361277033,3.99816227,2424.1,2423.9,1.49]
[1726361278235,3.99816227,2424.1,2423.7,1.91595]
[1726361278236,0.32991,2424.0,2423.7,1.91595]
[1726361278543,2.70611375,2423.8,2423.7,1.81995]
[1726361279040,3.49141375,2423.8,2423.7,1.81995]
[1726361284039,3.49141375,2423.8,2423.7,1.49]
[1726361284241,0.7853,2423.8,2423.7,2.03145473]
[1726361285141,0.7853,2423.8,2423.7,1.49]
[1726361285345,0.7853,2423.8,2423.7,2.03148169]
[1726361285544,0.7853,2423.8,2423.7,1.49]
[1726361285752,0.7853,2423.8,2423.7,2.03150524]
[1726361287353,0.7853,2423.8,2423.7,1.49]
[1726361287542,0.7853,2423.8,2423.7,2.0315091]
[1726361287850,0.7853,2423.8,2423.7,1.49]
[1726361290957,1.11525,2423.8,2423.5,4.38217872]
[1726361291153,3.49141375,2423.8,2423.5,1.586]
[1726361291352,3.49141375,2423.8,2423.7,1.49]
[1726361291760,0.7853,2423.8,2423.7,1.8947]
[1726361292257,0.7853,2423.8,2423.7,2.22465]
[1726361292476,0.7853,2423.8,2423.7,1.8947]
[1726361294350,3.49141375,2423.8,2423.7,1.8947]
[1726361296053,3.49141375,2423.8,2423.7,2.22465]
[1726361296248,3.49141375,2423.8,2423.7,1.8947]
[1726361297160,3.49141375,2423.8,2423.7,2.22465]
[1726361297346,3.49141375,2423.8,2423.7,1.8947]
[1726361297546,3.49141375,2423.8,2423.7,2.22465]
[1726361298650,3.10561375,2423.8,2423.7,2.22465]
[1726361299763,0.3995,2423.8,2423.7,2.22465]
[1726361301357,0.7868,2423.8,2423.7,2.22465]
[1726361303254,3.49291375,2423.8,2423.7,2.22465]
[1726361306055,3.49291375,2423.8,2423.7,1.8947]
[1726361306458,3.49291375,2423.8,2423.5,1.91597]
[1726361306664,2.16315524,2423.6,2423.5,1.91597]
[1726361306863,2.70611375,2423.7,2423.5,1.81997]
[1726361307056,0.4083,2423.6,2423.5,1.81997]
[1726361307358,0.4083,2423.6,2423.5,1.49]
[1726361307550,3.11441375,2423.6,2423.5,1.49]